[Event "Early-Titled-Tuesday-Blitz-January-30-2024"]
[Site "Chess.com"]
[Date "2024.01.30"]
[Round "10"]
[White "LaPiToB"]
[Black "Talent-OF-Slovenia"]
[Result "1/2-1/2"]
[WhiteElo "2310"]
[BlackElo "2472"]
[TimeControl "180+1"]
[EndTime "10:03:44 PST"]
[Termination "Game drawn by repetition"]

1. d4 {[%clk 0:02:56.8]} 1... d5 {[%clk 0:02:59.9]} 2. c4 {[%clk 0:02:56.1]}
2... c6 {[%clk 0:03:00]} 3. Nc3 {[%clk 0:02:55.8]} 3... Nf6 {[%clk 0:02:59.7]}
4. e3 {[%clk 0:02:53.5]} 4... Bf5 {[%clk 0:02:59]} 5. cxd5 {[%clk 0:02:51.6]}
5... cxd5 {[%clk 0:02:59.8]} 6. Qb3 {[%clk 0:02:51.8]} 6... Nc6 {[%clk
0:02:54.8]} 7. Qxb7 {[%clk 0:02:49.6]} 7... Bd7 {[%clk 0:02:54.3]} 8. Qb3 {[%clk
0:02:47.9]} 8... Rb8 {[%clk 0:02:54.2]} 9. Qd1 {[%clk 0:02:48]} 9... e5 {[%clk
0:02:54.7]} 10. dxe5 {[%clk 0:02:45.9]} 10... Nxe5 {[%clk 0:02:55.6]} 11. Nf3
{[%clk 0:02:40.2]} 11... Bd6 {[%clk 0:02:55.2]} 12. Be2 {[%clk 0:02:37.2]} 12...
Qc7 {[%clk 0:02:47.8]} 13. h3 {[%clk 0:02:33.4]} 13... O-O {[%clk 0:02:33.7]}
14. O-O {[%clk 0:02:32]} 14... Rfd8 {[%clk 0:02:14]} 15. Nd4 {[%clk 0:02:11.2]}
15... Nc4 {[%clk 0:02:08.2]} 16. Bf3 {[%clk 0:01:57.9]} 16... Nxb2 {[%clk
0:01:57.8]} 17. Bxb2 {[%clk 0:01:56.4]} 17... Rxb2 {[%clk 0:01:56.2]} 18. Nxd5
{[%clk 0:01:54.4]} 18... Nxd5 {[%clk 0:01:47.4]} 19. Bxd5 {[%clk 0:01:53.4]}
19... Bxh3 {[%clk 0:01:42.3]} 20. Bxf7+ {[%clk 0:01:21.8]} 20... Qxf7 {[%clk
0:01:36]} 21. gxh3 {[%clk 0:01:20.3]} 21... Rf8 {[%clk 0:01:15.3]} 22. f4 {[%clk
0:00:54.1]} 22... Bc5 {[%clk 0:00:39.3]} 23. Qg4 {[%clk 0:00:46]} 23... Bxd4
{[%clk 0:00:33.6]} 24. exd4 {[%clk 0:00:46.9]} 24... Qd5 {[%clk 0:00:34]} 25.
Rad1 {[%clk 0:00:45]} 25... Rxa2 {[%clk 0:00:32.3]} 26. f5 {[%clk 0:00:40.9]}
26... Qd6 {[%clk 0:00:17.6]} 27. Rf2 {[%clk 0:00:21.4]} 27... Rxf2 {[%clk
0:00:16.2]} 28. Kxf2 {[%clk 0:00:22.3]} 28... Qd5 {[%clk 0:00:15.3]} 29. Kg1
{[%clk 0:00:19.2]} 29... Rxf5 {[%clk 0:00:14.8]} 30. Kh2 {[%clk 0:00:17.4]}
30... Rg5 {[%clk 0:00:14.9]} 31. Qc8+ {[%clk 0:00:16.7]} 31... Kf7 {[%clk
0:00:13.7]} 32. Rf1+ {[%clk 0:00:16.6]} 32... Kg6 {[%clk 0:00:12]} 33. Qe8+
{[%clk 0:00:13.5]} 33... Kh6 {[%clk 0:00:11.3]} 34. Rf2 {[%clk 0:00:11.9]} 34...
Qxd4 {[%clk 0:00:07.4]} 35. Qe6+ {[%clk 0:00:11.7]} 35... g6 {[%clk 0:00:07.4]}
36. Qf7 {[%clk 0:00:09.9]} 36... Qe5+ {[%clk 0:00:06.5]} 37. Kh1 {[%clk
0:00:10.1]} 37... Qd5+ {[%clk 0:00:06.6]} 38. Kh2 {[%clk 0:00:07.4]} 38... Qe5+
{[%clk 0:00:05.4]} 39. Kh1 {[%clk 0:00:07.3]} 39... Qe1+ {[%clk 0:00:05.8]} 40.
Rf1 {[%clk 0:00:06.6]} 40... Qe4+ {[%clk 0:00:05.8]} 41. Rf3 {[%clk 0:00:06.2]}
41... Qe1+ {[%clk 0:00:03.9]} 42. Rf1 {[%clk 0:00:05.7]} 42... Qe5 {[%clk
0:00:02.2]} 43. Qf8+ {[%clk 0:00:05.4]} 43... Qg7 {[%clk 0:00:02.9]} 44. Qf4
{[%clk 0:00:04.9]} 44... Qb7+ {[%clk 0:00:03]} 45. Rf3 {[%clk 0:00:03.5]} 45...
Qb1+ {[%clk 0:00:03]} 46. Rf1 {[%clk 0:00:03.6]} 46... Qb7+ {[%clk 0:00:03.9]}
47. Rf3 {[%clk 0:00:03.9]} 47... Qb2 {[%clk 0:00:03.6]} 48. Rf2 {[%clk
0:00:02.3]} 48... Qa1+ {[%clk 0:00:03.6]} 49. Kh2 {[%clk 0:00:02.4]} 49... Qe5
{[%clk 0:00:02.3]} 50. Qxe5 {[%clk 0:00:02.2]} 50... Rxe5 {[%clk 0:00:02.5]} 51.
Ra2 {[%clk 0:00:02.9]} 51... a5 {[%clk 0:00:03.2]} 52. h4 {[%clk 0:00:03.5]}
52... Rb5 {[%clk 0:00:03.7]} 53. Kg3 {[%clk 0:00:04.2]} 53... Kh5 {[%clk
0:00:04.3]} 54. Ra3 {[%clk 0:00:04.2]} 54... h6 {[%clk 0:00:01.8]} 55. Ra2
{[%clk 0:00:04.1]} 55... Rb4 {[%clk 0:00:02.3]} 56. Rxa5+ {[%clk 0:00:03.9]}
56... g5 {[%clk 0:00:03.1]} 57. hxg5 {[%clk 0:00:03.6]} 57... hxg5 {[%clk
0:00:04]} 58. Ra7 {[%clk 0:00:03.9]} 58... Rb3+ {[%clk 0:00:04.6]} 59. Kg2
{[%clk 0:00:04.4]} 59... Kh4 {[%clk 0:00:05.2]} 60. Ra4+ {[%clk 0:00:04.8]}
60... g4 {[%clk 0:00:05.4]} 61. Rc4 {[%clk 0:00:04.2]} 61... Rb2+ {[%clk
0:00:05.8]} 62. Kg1 {[%clk 0:00:04.5]} 62... Kh3 {[%clk 0:00:06.4]} 63. Rc3+
{[%clk 0:00:05]} 63... g3 {[%clk 0:00:06.9]} 64. Rc1 {[%clk 0:00:03.3]} 64...
Rf2 {[%clk 0:00:06.6]} 65. Ra1 {[%clk 0:00:03]} 65... Rb2 {[%clk 0:00:06.4]} 66.
Re1 {[%clk 0:00:03.1]} 66... Rh2 {[%clk 0:00:05.9]} 67. Rd1 {[%clk 0:00:02.6]}
67... Kg4 {[%clk 0:00:06.6]} 68. Rd4+ {[%clk 0:00:02.5]} 68... Kh3 {[%clk
0:00:06.3]} 69. Rd3 {[%clk 0:00:03.1]} 69... Rb2 {[%clk 0:00:07]} 70. Rd1 {[%clk
0:00:03.3]} 70... Ra2 {[%clk 0:00:06]} 71. Rb1 {[%clk 0:00:03.4]} 71... Rg2+
{[%clk 0:00:05.3]} 72. Kh1 {[%clk 0:00:03.3]} 72... Rd2 {[%clk 0:00:05.2]} 73.
Kg1 {[%clk 0:00:03.7]} 73... Rf2 {[%clk 0:00:02.1]} 74. Rc1 {[%clk 0:00:03.6]}
74... Rg2+ {[%clk 0:00:02.6]} 75. Kh1 {[%clk 0:00:03.5]} 75... Re2 {[%clk
0:00:02.9]} 76. Kg1 {[%clk 0:00:04]} 76... Rf2 {[%clk 0:00:03.6]} 77. Rb1 {[%clk
0:00:03.3]} 77... Rc2 {[%clk 0:00:03.3]} 78. Rd1 {[%clk 0:00:03.4]} 78... g2
{[%clk 0:00:03.7]} 79. Rb1 {[%clk 0:00:03.4]} 79... Rc3 {[%clk 0:00:02.7]} 80.
Rd1 {[%clk 0:00:03.2]} 80... Kg3 {[%clk 0:00:03]} 81. Re1 {[%clk 0:00:02.4]}
81... Ra3 {[%clk 0:00:03.4]} 82. Rd1 {[%clk 0:00:02.7]} 82... Rf3 {[%clk
0:00:04]} 83. Re1 {[%clk 0:00:02.5]} 83... Rf4 {[%clk 0:00:03.6]} 84. Re3+
{[%clk 0:00:02.3]} 84... Rf3 {[%clk 0:00:04.4]} 85. Re1 {[%clk 0:00:02.1]} 85...
Rc3 {[%clk 0:00:02.9]} 86. Rd1 {[%clk 0:00:02.1]} 86... Rf3 {[%clk 0:00:03.5]}
87. Re1 {[%clk 0:00:02.3]} 1/2-1/2

[Event "Early-Titled-Tuesday-Blitz-January-30-2024"]
[Site "Chess.com"]
[Date "2024.01.30"]
[Round "10"]
[White "Herzog2012"]
[Black "Shodikulov_Jamshid1990"]
[Result "0-1"]
[WhiteElo "2544"]
[BlackElo "2428"]
[TimeControl "180+1"]
[EndTime "10:03:58 PST"]
[Termination "Shodikulov_Jamshid1990 won on time"]

1. e4 {[%clk 0:03:00.9]} 1... c5 {[%clk 0:02:58.7]} 2. Nf3 {[%clk 0:03:01.1]}
2... e6 {[%clk 0:02:56.9]} 3. d4 {[%clk 0:03:01]} 3... cxd4 {[%clk 0:02:57.8]}
4. Nxd4 {[%clk 0:03:01.9]} 4... a6 {[%clk 0:02:58.6]} 5. Nc3 {[%clk 0:03:01.1]}
5... b5 {[%clk 0:02:58.5]} 6. Bd3 {[%clk 0:03:00.6]} 6... Bb7 {[%clk 0:02:57.4]}
7. O-O {[%clk 0:02:59.6]} 7... Qc7 {[%clk 0:02:57.8]} 8. Qe2 {[%clk 0:02:58.7]}
8... d6 {[%clk 0:02:52.5]} 9. f4 {[%clk 0:02:51.9]} 9... Nd7 {[%clk 0:02:51]}
10. Be3 {[%clk 0:02:37.9]} 10... Ngf6 {[%clk 0:02:48.7]} 11. a3 {[%clk
0:02:29.4]} 11... Be7 {[%clk 0:02:45.7]} 12. Bf2 {[%clk 0:02:21]} 12... O-O
{[%clk 0:02:43.2]} 13. Rfe1 {[%clk 0:02:21.2]} 13... Nc5 {[%clk 0:02:42.6]} 14.
h3 {[%clk 0:02:08.8]} 14... Rfe8 {[%clk 0:02:37.6]} 15. Nf3 {[%clk 0:01:46.1]}
15... Rac8 {[%clk 0:02:21.5]} 16. Rad1 {[%clk 0:01:16.8]} 16... Bf8 {[%clk
0:01:57.4]} 17. Bd4 {[%clk 0:01:06.7]} 17... e5 {[%clk 0:01:34.7]} 18. fxe5
{[%clk 0:01:02.2]} 18... dxe5 {[%clk 0:01:35.6]} 19. Bf2 {[%clk 0:00:58.7]}
19... Ne6 {[%clk 0:01:36.2]} 20. Be3 {[%clk 0:00:37.3]} 20... Bc5 {[%clk
0:01:22.4]} 21. Nd5 {[%clk 0:00:21.5]} 21... Bxd5 {[%clk 0:01:16.5]} 22. exd5
{[%clk 0:00:22.4]} 22... Nf4 {[%clk 0:01:17]} 23. Qf2 {[%clk 0:00:19.5]} 23...
Bxe3 {[%clk 0:01:16.6]} 24. Qxe3 {[%clk 0:00:12]} 24... N4xd5 {[%clk 0:01:15.6]}
25. Qg5 {[%clk 0:00:11.4]} 25... h6 {[%clk 0:01:13.5]} 26. Qg3 {[%clk
0:00:11.2]} 26... Nf4 {[%clk 0:01:09]} 27. Bf5 {[%clk 0:00:11.2]} 27... e4
{[%clk 0:00:51.6]} 28. Nd4 {[%clk 0:00:06.9]} 28... Rcd8 {[%clk 0:00:48.1]} 29.
Qf2 {[%clk 0:00:06.6]} 29... N4d5 {[%clk 0:00:39.3]} 30. c3 {[%clk 0:00:04]}
30... e3 {[%clk 0:00:39.1]} 31. Qf3 {[%clk 0:00:04.2]} 31... Re7 {[%clk
0:00:22.7]} 32. Bb1 {[%clk 0:00:04.3]} 32... Rde8 {[%clk 0:00:23]} 33. Nf5
{[%clk 0:00:04.1]} 33... Re5 {[%clk 0:00:23.2]} 34. Rd4 {[%clk 0:00:02.9]} 34...
e2 {[%clk 0:00:22.7]} 35. Rd2 {[%clk 0:00:02.3]} 35... Qc5+ {[%clk 0:00:22.9]}
36. Nd4 {[%clk 0:00:02.6]} 36... Re3 {[%clk 0:00:20.9]} 37. Qf2 {[%clk
0:00:03.2]} 37... Qd6 {[%clk 0:00:20.1]} 38. Rdxe2 {[%clk 0:00:03.1]} 38... Rxe2
{[%clk 0:00:19.9]} 39. Rxe2 {[%clk 0:00:03.5]} 39... Rxe2 {[%clk 0:00:20.5]} 40.
Qxe2 {[%clk 0:00:04.4]} 40... g6 {[%clk 0:00:20]} 41. Qf3 {[%clk 0:00:03.7]}
41... Qe5 {[%clk 0:00:20]} 42. Qf2 {[%clk 0:00:02.7]} 42... Kg7 {[%clk 0:00:20]}
43. Bd3 {[%clk 0:00:02.9]} 43... Nf4 {[%clk 0:00:20]} 44. Bf1 {[%clk 0:00:02.3]}
44... Ne4 {[%clk 0:00:20.3]} 45. Qe3 {[%clk 0:00:01.9]} 45... Nd5 {[%clk
0:00:19.9]} 46. Qf3 {[%clk 0:00:01.4]} 46... Nd2 {[%clk 0:00:19.3]} 47. Qf2
{[%clk 0:00:01.9]} 47... Ne4 {[%clk 0:00:18.1]} 48. Nf3 {[%clk 0:00:02.3]} 48...
Qf6 {[%clk 0:00:16.8]} 49. Qd4 {[%clk 0:00:02.2]} 49... Qxd4+ {[%clk 0:00:16.5]}
50. Nxd4 {[%clk 0:00:03.1]} 50... Nd2 {[%clk 0:00:16.6]} 51. Kf2 {[%clk
0:00:02.8]} 51... Nxf1 {[%clk 0:00:14.1]} 52. Kxf1 {[%clk 0:00:03]} 52... Ne3+
{[%clk 0:00:15]} 53. Kg1 {[%clk 0:00:03.6]} 53... Nc4 {[%clk 0:00:15.9]} 54. b3
{[%clk 0:00:02.8]} 54... Nxa3 {[%clk 0:00:16.2]} 55. Kf2 {[%clk 0:00:03.5]}
55... Nb1 {[%clk 0:00:16.4]} 56. c4 {[%clk 0:00:03.2]} 56... bxc4 {[%clk
0:00:16.4]} 57. bxc4 {[%clk 0:00:04.1]} 57... Nd2 {[%clk 0:00:16.8]} 58. c5
{[%clk 0:00:02.3]} 58... Ne4+ {[%clk 0:00:17.2]} 59. Ke3 {[%clk 0:00:03.2]}
59... Nxc5 {[%clk 0:00:18]} 60. Nc6 {[%clk 0:00:03.6]} 60... f5 {[%clk 0:00:17]}
61. Kd4 {[%clk 0:00:03.9]} 61... Nd7 {[%clk 0:00:17.7]} 62. Nb4 {[%clk
0:00:03.4]} 62... a5 {[%clk 0:00:17.7]} 63. Nc6 {[%clk 0:00:04.1]} 63... a4
{[%clk 0:00:18.4]} 64. Kc4 {[%clk 0:00:04.8]} 64... Kf6 {[%clk 0:00:18.6]} 65.
Kb4 {[%clk 0:00:05.2]} 65... Ne5 {[%clk 0:00:19.5]} 66. Nd4 {[%clk 0:00:05.3]}
66... Nd3+ {[%clk 0:00:18.9]} 67. Kxa4 {[%clk 0:00:04.3]} 67... Nf4 {[%clk
0:00:19.8]} 68. g3 {[%clk 0:00:03]} 68... Nxh3 {[%clk 0:00:20.5]} 69. Kb4 {[%clk
0:00:03.9]} 69... Nf2 {[%clk 0:00:20.9]} 70. Ne2 {[%clk 0:00:02.4]} 70... Ne4
{[%clk 0:00:21.6]} 71. Kc4 {[%clk 0:00:02.7]} 71... Ke5 {[%clk 0:00:22.1]} 72.
Kd3 {[%clk 0:00:03.3]} 72... g5 {[%clk 0:00:22.7]} 73. Ke3 {[%clk 0:00:03.9]}
73... h5 {[%clk 0:00:23.2]} 74. Kf3 {[%clk 0:00:04]} 74... g4+ {[%clk 0:00:23]}
75. Kg2 {[%clk 0:00:04.5]} 75... Kf6 {[%clk 0:00:22.1]} 76. Nf4 {[%clk
0:00:04.8]} 76... Kg5 {[%clk 0:00:22.7]} 77. Ne6+ {[%clk 0:00:05.3]} 77... Kh6
{[%clk 0:00:23.2]} 78. Nf4 {[%clk 0:00:05.8]} 78... Ng5 {[%clk 0:00:21.9]} 79.
Nd5 {[%clk 0:00:06.1]} 79... Ne6 {[%clk 0:00:21.8]} 80. Kf2 {[%clk 0:00:03.7]}
80... Kg5 {[%clk 0:00:22.3]} 81. Nc3 {[%clk 0:00:02.4]} 81... h4 {[%clk
0:00:21.8]} 82. gxh4+ {[%clk 0:00:02]} 82... Kxh4 {[%clk 0:00:22.7]} 83. Nd5
{[%clk 0:00:02.6]} 83... f4 {[%clk 0:00:22.8]} 84. Kg2 {[%clk 0:00:02.6]} 84...
f3+ {[%clk 0:00:22.8]} 85. Kf2 {[%clk 0:00:02.8]} 85... Kh3 {[%clk 0:00:21.7]}
86. Ne3 {[%clk 0:00:02.2]} 86... Nf4 {[%clk 0:00:20.4]} 87. Nf1 {[%clk
0:00:01.9]} 87... Nd3+ {[%clk 0:00:20.3]} 88. Ke3 {[%clk 0:00:02.4]} 88... g3
{[%clk 0:00:20.3]} 89. Nd2 {[%clk 0:00:01.1]} 89... f2 {[%clk 0:00:18.2]} 90.
Kxd3 {[%clk 0:00:01.2]} 90... g2 {[%clk 0:00:18.5]} 0-1

[Event "Early-Titled-Tuesday-Blitz-January-30-2024"]
[Site "Chess.com"]
[Date "2024.01.30"]
[Round "10"]
[White "lilylg"]
[Black "invisible_s0ul"]
[Result "0-1"]
[WhiteElo "2150"]
[BlackElo "2255"]
[TimeControl "180+1"]
[EndTime "10:04:07 PST"]
[Termination "invisible_s0ul won on time"]

1. d4 {[%clk 0:03:00.9]} 1... Nf6 {[%clk 0:02:57.7]} 2. c4 {[%clk 0:03:01]} 2...
e6 {[%clk 0:02:58.1]} 3. Nf3 {[%clk 0:03:00.7]} 3... Bb4+ {[%clk 0:02:56.2]} 4.
Bd2 {[%clk 0:02:57.2]} 4... Qe7 {[%clk 0:02:56.7]} 5. g3 {[%clk 0:02:57.1]} 5...
O-O {[%clk 0:02:54.8]} 6. Bg2 {[%clk 0:02:57.5]} 6... d5 {[%clk 0:02:52.7]} 7.
O-O {[%clk 0:02:56.7]} 7... Bxd2 {[%clk 0:02:50.7]} 8. Nbxd2 {[%clk 0:02:56.5]}
8... c5 {[%clk 0:02:34.7]} 9. cxd5 {[%clk 0:02:55.2]} 9... Nxd5 {[%clk
0:02:35.6]} 10. e4 {[%clk 0:02:54.7]} 10... Nf6 {[%clk 0:02:29.5]} 11. dxc5
{[%clk 0:02:52.3]} 11... Qxc5 {[%clk 0:02:27.6]} 12. Rc1 {[%clk 0:02:52.5]}
12... Qb4 {[%clk 0:02:21.5]} 13. b3 {[%clk 0:02:25.3]} 13... Nc6 {[%clk
0:02:12.4]} 14. Qe2 {[%clk 0:02:21.7]} 14... e5 {[%clk 0:02:09.6]} 15. Nc4
{[%clk 0:02:19.6]} 15... Bg4 {[%clk 0:02:07.4]} 16. h3 {[%clk 0:02:13.9]} 16...
Nd4 {[%clk 0:02:06.5]} 17. Qe3 {[%clk 0:02:13.8]} 17... Nxf3+ {[%clk 0:01:47.4]}
18. Bxf3 {[%clk 0:02:14.1]} 18... Bxh3 {[%clk 0:01:47.4]} 19. Rfd1 {[%clk
0:02:14.6]} 19... Qe7 {[%clk 0:01:36.7]} 20. Qg5 {[%clk 0:02:05.1]} 20... h6
{[%clk 0:01:26.2]} 21. Qh4 {[%clk 0:02:04.9]} 21... Bd7 {[%clk 0:01:15.5]} 22.
Rd2 {[%clk 0:01:43.8]} 22... Rfd8 {[%clk 0:01:13.5]} 23. Rcd1 {[%clk 0:01:43.7]}
23... b5 {[%clk 0:01:05.6]} 24. Ne3 {[%clk 0:01:42.4]} 24... Be6 {[%clk
0:01:03]} 25. Be2 {[%clk 0:01:18.2]} 25... Rxd2 {[%clk 0:00:54.3]} 26. Rxd2
{[%clk 0:01:19.1]} 26... Qb4 {[%clk 0:00:54.2]} 27. Rd1 {[%clk 0:00:57.3]} 27...
Rc8 {[%clk 0:00:49.7]} 28. Nd5 {[%clk 0:00:29.1]} 28... Bxd5 {[%clk 0:00:40]}
29. exd5 {[%clk 0:00:29.4]} 29... Qxh4 {[%clk 0:00:40.4]} 30. gxh4 {[%clk
0:00:30.3]} 30... Rd8 {[%clk 0:00:34.4]} 31. d6 {[%clk 0:00:30.1]} 31... Ne4
{[%clk 0:00:30.7]} 32. d7 {[%clk 0:00:23]} 32... Nc3 {[%clk 0:00:30.4]} 33. Rd2
{[%clk 0:00:21.7]} 33... Nxe2+ {[%clk 0:00:29.9]} 34. Rxe2 {[%clk 0:00:22.6]}
34... f6 {[%clk 0:00:27.8]} 35. Rd2 {[%clk 0:00:19.5]} 35... Kf7 {[%clk
0:00:28.2]} 36. Rd5 {[%clk 0:00:19.6]} 36... a6 {[%clk 0:00:27]} 37. Rd6 {[%clk
0:00:19.5]} 37... Ke7 {[%clk 0:00:14.8]} 38. Rxa6 {[%clk 0:00:19.6]} 38... Rxd7
{[%clk 0:00:15.5]} 39. Rb6 {[%clk 0:00:20.1]} 39... Rd5 {[%clk 0:00:15.6]} 40.
Rb7+ {[%clk 0:00:20.3]} 40... Kf8 {[%clk 0:00:13.9]} 41. Kg2 {[%clk 0:00:19.4]}
41... Kg8 {[%clk 0:00:12.8]} 42. Kf3 {[%clk 0:00:17.8]} 42... Kh7 {[%clk
0:00:12.6]} 43. h5 {[%clk 0:00:16.3]} 43... f5 {[%clk 0:00:11.9]} 44. Ke3 {[%clk
0:00:16.5]} 44... Rc5 {[%clk 0:00:07.9]} 45. Kd3 {[%clk 0:00:16.3]} 45... Kg8
{[%clk 0:00:07.2]} 46. a4 {[%clk 0:00:05.1]} 46... bxa4 {[%clk 0:00:06.5]} 47.
bxa4 {[%clk 0:00:06]} 47... Ra5 {[%clk 0:00:06.8]} 48. Re7 {[%clk 0:00:04.4]}
48... e4+ {[%clk 0:00:04.3]} 49. Ke3 {[%clk 0:00:03.8]} 49... Rxa4 {[%clk
0:00:04.5]} 50. Re5 {[%clk 0:00:04.2]} 50... Ra3+ {[%clk 0:00:03.5]} 51. Ke2
{[%clk 0:00:04.6]} 51... Rf3 {[%clk 0:00:03.8]} 52. Re7 {[%clk 0:00:04.2]} 52...
Kh7 {[%clk 0:00:03.6]} 53. Rf7 {[%clk 0:00:04.3]} 53... Rf4 {[%clk 0:00:03]} 54.
Ke3 {[%clk 0:00:04.1]} 54... Rf3+ {[%clk 0:00:03.5]} 55. Ke2 {[%clk 0:00:04.5]}
55... f4 {[%clk 0:00:03.5]} 56. Re7 {[%clk 0:00:04.2]} 56... Rh3 {[%clk
0:00:03.2]} 57. Rxe4 {[%clk 0:00:03.9]} 57... Rxh5 {[%clk 0:00:03.9]} 58. Rxf4
{[%clk 0:00:04.8]} 58... Re5+ {[%clk 0:00:04.6]} 59. Kf3 {[%clk 0:00:04.7]}
59... Kg6 {[%clk 0:00:05.1]} 60. Kg3 {[%clk 0:00:04.7]} 60... Rg5+ {[%clk
0:00:04.2]} 61. Kh3 {[%clk 0:00:04.8]} 61... Rf5 {[%clk 0:00:04.4]} 62. Rg4+
{[%clk 0:00:05.1]} 62... Rg5 {[%clk 0:00:04.6]} 63. Rb4 {[%clk 0:00:05.5]} 63...
Rf5 {[%clk 0:00:04.8]} 64. Kg3 {[%clk 0:00:05.2]} 64... Kf6 {[%clk 0:00:04.8]}
65. f4 {[%clk 0:00:05.2]} 65... g5 {[%clk 0:00:04.5]} 66. Rb6+ {[%clk
0:00:05.7]} 66... Kg7 {[%clk 0:00:04.5]} 67. Rb7+ {[%clk 0:00:05.8]} 67... Kg6
{[%clk 0:00:04.6]} 68. Rb6+ {[%clk 0:00:06]} 68... Kh5 {[%clk 0:00:04.8]} 69.
fxg5 {[%clk 0:00:05.3]} 69... hxg5 {[%clk 0:00:05.7]} 70. Rb8 {[%clk 0:00:05]}
70... Rc5 {[%clk 0:00:05.4]} 71. Rh8+ {[%clk 0:00:05.3]} 71... Kg6 {[%clk
0:00:06]} 72. Kg4 {[%clk 0:00:04.4]} 72... Rc4+ {[%clk 0:00:06.2]} 73. Kg3
{[%clk 0:00:04.9]} 73... Kf5 {[%clk 0:00:04.4]} 74. Rf8+ {[%clk 0:00:05.6]}
74... Kg6 {[%clk 0:00:04.8]} 75. Rg8+ {[%clk 0:00:06]} 75... Kf6 {[%clk
0:00:04.6]} 76. Rf8+ {[%clk 0:00:06.5]} 76... Kg7 {[%clk 0:00:05.1]} 77. Rd8
{[%clk 0:00:05.7]} 77... Rf4 {[%clk 0:00:04.5]} 78. Rd6 {[%clk 0:00:05.8]} 78...
Re4 {[%clk 0:00:03.7]} 79. Rb6 {[%clk 0:00:04.9]} 79... Ra4 {[%clk 0:00:04.3]}
80. Rc6 {[%clk 0:00:04.5]} 80... Rf4 {[%clk 0:00:04.3]} 81. Rc7+ {[%clk
0:00:04.9]} 81... Kg6 {[%clk 0:00:04]} 82. Rc8 {[%clk 0:00:05.4]} 82... Rf6
{[%clk 0:00:04.5]} 83. Rc5 {[%clk 0:00:05]} 83... Rf5 {[%clk 0:00:04.6]} 84.
Rc6+ {[%clk 0:00:04.8]} 84... Kf7 {[%clk 0:00:04.3]} 85. Rb6 {[%clk 0:00:04.2]}
85... Rd5 {[%clk 0:00:04.3]} 86. Rh6 {[%clk 0:00:04.2]} 86... Rf5 {[%clk
0:00:03.6]} 87. Kg4 {[%clk 0:00:04]} 87... Rc5 {[%clk 0:00:03.5]} 88. Rh7+
{[%clk 0:00:03.7]} 88... Kg6 {[%clk 0:00:03.8]} 89. Rc7 {[%clk 0:00:03.8]} 89...
Rxc7 {[%clk 0:00:03.9]} 0-1

[Event "Early-Titled-Tuesday-Blitz-January-30-2024"]
[Site "Chess.com"]
[Date "2024.01.30"]
[Round "11"]
[White "Chesstiger64"]
[Black "ChessLebaneseSalah"]
[Result "0-1"]
[WhiteElo "2236"]
[BlackElo "2458"]
[TimeControl "180+1"]
[EndTime "10:06:43 PST"]
[Termination "ChessLebaneseSalah won by checkmate"]

1. d4 {[%clk 0:03:00.9]} 1... d5 {[%clk 0:03:00.3]} 2. Nf3 {[%clk 0:03:01]} 2...
Nf6 {[%clk 0:03:00.8]} 3. e3 {[%clk 0:03:00.3]} 3... c6 {[%clk 0:03:01.3]} 4. c4
{[%clk 0:02:55.7]} 4... e6 {[%clk 0:03:00.8]} 5. Nc3 {[%clk 0:02:56.1]} 5...
Nbd7 {[%clk 0:03:01.4]} 6. Bd3 {[%clk 0:02:56.1]} 6... Bd6 {[%clk 0:03:02]} 7.
O-O {[%clk 0:02:56.4]} 7... dxc4 {[%clk 0:03:02.4]} 8. Bxc4 {[%clk 0:02:55.3]}
8... b5 {[%clk 0:03:02.9]} 9. Bb3 {[%clk 0:02:55]} 9... Bb7 {[%clk 0:03:01.1]}
10. Qc2 {[%clk 0:02:55]} 10... O-O {[%clk 0:03:00.3]} 11. e4 {[%clk 0:02:55.4]}
11... e5 {[%clk 0:03:00.5]} 12. dxe5 {[%clk 0:02:54.9]} 12... Nxe5 {[%clk
0:03:01]} 13. Nxe5 {[%clk 0:02:53]} 13... Bxe5 {[%clk 0:03:01.9]} 14. f4 {[%clk
0:02:53.1]} 14... Bd4+ {[%clk 0:03:00.9]} 15. Kh1 {[%clk 0:02:52.3]} 15... c5
{[%clk 0:02:58.1]} 16. e5 {[%clk 0:02:50.3]} 16... Ng4 {[%clk 0:02:53.1]} 17.
Nxb5 {[%clk 0:02:49.3]} 17... Qh4 {[%clk 0:02:45.9]} 18. h3 {[%clk 0:02:18.4]}
18... Qxh3# {[%clk 0:02:43]} 0-1

[Event "Early-Titled-Tuesday-Blitz-January-30-2024"]
[Site "Chess.com"]
[Date "2024.01.30"]
[Round "11"]
[White "Bushonica"]
[Black "Alenzer"]
[Result "0-1"]
[WhiteElo "1806"]
[BlackElo "2119"]
[TimeControl "180+1"]
[EndTime "10:07:43 PST"]
[Termination "Alenzer won by resignation"]

1. e4 {[%clk 0:01:52.9]} 1... c5 {[%clk 0:02:59.3]} 2. Nf3 {[%clk 0:01:52.9]}
2... e6 {[%clk 0:02:59.1]} 3. d4 {[%clk 0:01:53.1]} 3... cxd4 {[%clk 0:02:59.5]}
4. Nxd4 {[%clk 0:01:53.4]} 4... Nf6 {[%clk 0:03:00]} 5. Nc3 {[%clk 0:01:53.7]}
5... Nc6 {[%clk 0:03:00.5]} 6. Be3 {[%clk 0:01:53.4]} 6... Bb4 {[%clk
0:02:59.7]} 7. Bd3 {[%clk 0:01:51.9]} 7... d5 {[%clk 0:02:59.3]} 8. exd5 {[%clk
0:01:50.7]} 8... Nxd5 {[%clk 0:02:58]} 9. Nxc6 {[%clk 0:01:48.6]} 9... bxc6
{[%clk 0:02:37]} 10. Bd2 {[%clk 0:01:47.9]} 10... O-O {[%clk 0:02:33.7]} 11. O-O
{[%clk 0:01:47.6]} 11... Bd6 {[%clk 0:02:31.5]} 12. Qh5 {[%clk 0:01:44.1]} 12...
Nf6 {[%clk 0:02:21.3]} 13. Qh3 {[%clk 0:01:43.3]} 13... e5 {[%clk 0:02:20.5]}
14. Bg5 {[%clk 0:01:42.6]} 14... Bxh3 {[%clk 0:02:17.5]} 0-1

[Event "Early-Titled-Tuesday-Blitz-January-30-2024"]
[Site "Chess.com"]
[Date "2024.01.30"]
[Round "11"]
[White "Der_Balak_3Halak"]
[Black "anasta10"]
[Result "1-0"]
[WhiteElo "2371"]
[BlackElo "2484"]
[TimeControl "180+1"]
[EndTime "10:08:04 PST"]
[Termination "Der_Balak_3Halak won by checkmate"]

1. e4 {[%clk 0:02:24.8]} 1... g6 {[%clk 0:02:58.5]} 2. h4 {[%clk 0:02:23.6]}
2... h5 {[%clk 0:02:57.7]} 3. d4 {[%clk 0:02:22.7]} 3... Bg7 {[%clk 0:02:58.4]}
4. Be3 {[%clk 0:02:23.2]} 4... d6 {[%clk 0:02:59.1]} 5. Nc3 {[%clk 0:02:23.3]}
5... a6 {[%clk 0:02:59.8]} 6. Qd2 {[%clk 0:02:22.9]} 6... b5 {[%clk 0:03:00.1]}
7. a3 {[%clk 0:02:21.7]} 7... Bb7 {[%clk 0:03:00.7]} 8. f3 {[%clk 0:02:21.5]}
8... Nf6 {[%clk 0:03:00.9]} 9. Nge2 {[%clk 0:02:19.3]} 9... Nbd7 {[%clk
0:03:01.6]} 10. d5 {[%clk 0:02:10.4]} 10... c6 {[%clk 0:02:59.8]} 11. dxc6
{[%clk 0:02:07.6]} 11... Bxc6 {[%clk 0:03:00.7]} 12. Nd4 {[%clk 0:02:07.7]}
12... Bb7 {[%clk 0:03:00.7]} 13. O-O-O {[%clk 0:02:05.8]} 13... Qc7 {[%clk
0:02:58.2]} 14. Be2 {[%clk 0:02:03.9]} 14... Ne5 {[%clk 0:02:55.5]} 15. f4
{[%clk 0:01:51]} 15... Nc4 {[%clk 0:02:53.1]} 16. Bxc4 {[%clk 0:01:50.9]} 16...
Qxc4 {[%clk 0:02:54]} 17. e5 {[%clk 0:01:51.1]} 17... dxe5 {[%clk 0:02:49.3]}
18. fxe5 {[%clk 0:01:52]} 18... Ng4 {[%clk 0:02:49.4]} 19. Nf5 {[%clk
0:01:20.7]} 19... gxf5 {[%clk 0:02:30.3]} 20. Qd7+ {[%clk 0:01:19.9]} 20... Kf8
{[%clk 0:02:30.8]} 21. Qd8+ {[%clk 0:01:20.5]} 21... Rxd8 {[%clk 0:02:28.3]} 22.
Rxd8# {[%clk 0:01:21.4]} 1-0